bitfinex/quotes_ETHUSD_20241204
["timestamp","ask_amount","ask_price","bid_price","bid_amount"]
[1733334777785,1.5505,3812.4,3810.7,1.6511]
[1733334777993,1.5505,3812.4,3812.0,2.62328]
[1733334778209,1.5505,3812.4,3811.1,0.2621]
[1733334778367,1.5505,3812.4,3811.5,3.0]
[1733334778571,1.5505,3812.4,3812.3,2.62308]
[1733334778880,1.5991,3813.2,3812.7,2.6228]
[1733334779093,0.24352317,3813.1,3812.8,2.62273]
[1733334779288,1.5991,3813.2,3812.8,2.62273]
[1733334779706,1.5991,3813.2,3812.6,2.62286]
[1733334779998,1.5991,3813.2,3812.1,3.0]
[1733334780205,1.5991,3813.2,3812.3,2.62305]
[1733334780403,1.5991,3813.2,3812.1,2.62321]
[1733334780605,1.81168259,3813.2,3812.3,2.62308]
[1733334780765,1.81168259,3813.2,3811.9,2.62336]
[1733334780966,1.81168259,3813.2,3811.4,0.2621]
[1733334780967,1.6642,3813.0,3811.4,0.2621]
[1733334781162,1.6642,3813.0,3812.0,2.62328]
[1733334781407,0.18767826,3812.9,3811.5,3.0]
[1733334781570,0.18767826,3812.9,3811.6,3.0]
[1733334781769,0.18767826,3812.9,3812.1,2.6232]
[1733334782276,1.6642,3813.0,3811.6,3.0]
[1733334782504,1.6642,3813.0,3812.7,2.62279]
[1733334782913,1.6642,3813.0,3812.0,3.0]
[1733334783131,1.6642,3813.0,3811.5,0.2621]
[1733334783301,1.6642,3813.0,3811.7,2.62343]
[1733334783505,1.65,3812.8,3811.7,2.62343]
[1733334783934,1.65,3812.8,3811.6,2.6235]
[1733334784096,1.6651,3812.6,3811.7,2.62349]
[1733334784295,1.6651,3812.6,3811.0,3.0]
[1733334784498,1.6651,3812.6,3811.3,3.0]
[1733334784832,1.6651,3812.6,3812.0,2.62329]
[1733334785002,1.6651,3812.6,3812.4,2.62295]
[1733334785205,1.6651,3812.6,3812.5,2.62295]
[1733334785929,1.6651,3812.6,3811.8,3.0]
[1733334786102,0.24482828,3812.5,3811.6,3.2621]
[1733334786304,1.6651,3812.6,3811.6,0.2621]
[1733334786784,0.24493781,3812.5,3811.8,2.62342]
[1733334786926,0.24493781,3812.4,3811.9,2.62336]
[1733334787238,1.83161,3812.6,3811.7,2.62349]
[1733334787443,0.24495367,3812.5,3811.5,3.0]
[1733334787638,0.24495367,3812.4,3811.5,3.0]
[1733334787800,1.83161,3812.6,3811.7,2.62344]
[1733334787993,0.24508053,3812.3,3811.7,2.62344]
[1733334788200,1.5311,3812.4,3810.8,2.62411]
[1733334788514,1.06938927,3812.3,3811.5,2.62363]
[1733334788834,0.24508539,3812.2,3810.8,0.54778172]
[1733334789035,0.43205,3812.3,3810.8,0.25916072]
[1733334789036,0.24508539,3812.1,3810.8,0.25916072]
[1733334789244,0.24508539,3812.0,3811.4,2.62367]
[1733334789395,1.5311,3812.4,3810.9,2.62405]
[1733334789396,1.5311,3812.4,3810.9,3.0]
[1733334789597,0.24524696,3812.3,3812.0,2.62324]
[1733334789821,0.24524696,3812.2,3812.0,2.62324]
[1733334790041,1.5311,3812.4,3812.0,2.62324]
[1733334790198,0.2452439,3812.3,3812.0,2.62324]
[1733334790402,1.5311,3812.4,3812.3,2.62308]
[1733334790839,1.77629078,3812.4,3812.3,2.62308]
[1733334791039,0.24519078,3812.4,3812.3,2.62308]
[1733334791202,1.5648,3812.8,3811.8,1.5042]
[1733334791399,0.24518034,3812.7,3812.1,2.6232]
[1733334791619,1.5648,3812.8,3811.5,0.26241925]
[1733334791620,0.24518034,3812.6,3811.5,0.26241925]
[1733334791827,0.63749537,3812.5,3811.4,2.62366]
[1733334792145,0.63749537,3812.4,3811.8,2.62337]
[1733334792439,1.5648,3812.8,3811.4,2.62368]
[1733334792440,0.24518034,3812.3,3811.4,2.62368]
[1733334792736,0.24518034,3812.2,3811.9,2.62334]
[1733334792911,1.5648,3812.8,3812.1,2.62322]
[1733334793128,0.63745778,3812.7,3812.1,2.62322]
[1733334793327,0.24517607,3812.6,3811.9,2.62335]
[1733334793538,0.24517607,3812.6,3811.1,3.26796426]
[1733334793539,0.24517607,3812.5,3811.4,3.0]
[1733334793854,1.5192,3812.4,3811.7,2.62348]
[1733334794054,1.5192,3812.4,3811.5,2.62363]
[1733334794232,1.5192,3812.4,3811.7,2.62343]
[1733334794433,1.5192,3812.4,3811.4,3.0]
[1733334794634,1.5995,3812.2,3810.8,2.62407]
[1733334794841,1.5995,3812.2,3810.6,3.13907435]
[1733334795055,1.5995,3812.2,3811.4,2.62365]
[1733334795355,1.5067,3812.0,3810.9,2.62403]
[1733334795558,4.13008,3811.9,3810.2,0.2621]
[1733334795760,0.17001976,3812.3,3808.9,2.82541]
[1733334795761,4.13027,3811.6,3809.6,1.8539]
[1733334796056,1.5881,3811.5,3810.0,2.62461]
[1733334796265,1.5881,3811.5,3809.7,0.53676304]
[1733334796437,1.5881,3811.5,3810.5,2.62428]
[1733334796636,1.5881,3811.5,3810.6,2.62419]
[1733334796821,0.21039216,3811.4,3809.8,2.6248]
[1733334797159,1.5881,3811.3,3810.0,3.0]
[1733334797361,1.5881,3811.3,3810.5,2.62432]
[1733334797564,1.5881,3811.3,3810.3,2.62445]
[1733334797735,1.5881,3811.3,3809.6,1.85710634]
[1733334798058,1.5716,3811.1,3809.8,2.6248]
[1733334798271,1.5716,3811.1,3810.1,2.6246]
[1733334798438,1.5716,3811.1,3809.9,2.62474]
[1733334798637,1.5716,3811.1,3809.8,3.0]
[1733334798872,1.5716,3811.1,3810.8,2.62409]
[1733334799024,1.5716,3811.1,3811.0,2.62398]
[1733334799224,1.5716,3812.2,3810.8,0.262409]
[1733334799426,0.52620392,3812.1,3811.0,3.0]
[1733334799622,0.52620392,3812.1,3811.7,2.62345]
[1733334799856,0.52620392,3812.1,3811.4,2.62363]
[1733334800038,0.52620392,3812.1,3810.6,2.62425]
[1733334800251,0.52620392,3812.1,3811.5,2.62362]
[1733334800486,0.73598431,3812.1,3811.5,2.62362]
[1733334800637,0.73598431,3812.1,3811.6,2.62352]
[1733334801062,0.73598431,3812.1,3810.8,2.62412]
[1733334801224,0.52620392,3812.1,3810.9,1.61933845]
[1733334801427,1.5253,3812.7,3811.3,0.55]
[1733334801666,1.5253,3812.7,3812.6,2.62288]
[1733334801826,1.67783,3812.7,3811.6,5.62352]
[1733334802026,1.67783,3812.7,3812.3,2.62307]
[1733334802271,1.67783,3812.7,3811.8,2.62338]
[1733334802454,1.67783,3812.7,3812.2,2.62313]
[1733334802766,1.67783,3812.7,3811.3,2.62377]
[1733334802975,1.67783,3812.7,3812.1,2.62321]
[1733334803127,1.67783,3812.7,3812.2,2.62313]
[1733334804235,1.67783,3812.7,3812.0,2.62328]
[1733334804471,1.67783,3812.7,3812.2,2.62315]
[1733334804675,1.5253,3812.7,3811.6,0.26295954]
[1733334804826,1.5253,3812.7,3812.6,2.62288]
[1733334805751,1.5253,3812.7,3812.1,2.62319]
[1733334805965,1.5253,3812.7,3811.9,2.62336]
[1733334806275,1.5253,3812.7,3812.5,2.6229]
[1733334806838,1.5253,3812.7,3811.8,3.0]
[1733334807050,1.5253,3812.7,3812.6,2.62288]
[1733334807342,0.27408104,3813.8,3811.8,3.25943077]
[1733334807343,1.5963,3813.7,3812.0,2.62328]
[1733334807543,1.5963,3813.7,3812.8,2.62273]
[1733334807770,1.5963,3813.3,3812.9,2.62264]
[1733334808074,1.5963,3813.3,3811.9,2.62336]
[1733334808287,1.5963,3813.3,3813.0,2.62255]
[1733334808487,1.5963,3813.3,3812.0,3.0]
[1733334808664,1.5963,3813.3,3812.6,2.62284]
[1733334808853,1.5963,3813.3,3812.0,3.0]
[1733334809053,1.5963,3813.3,3811.8,2.88283077]
[1733334809054,1.5963,3813.3,3812.3,2.62307]
[1733334809321,1.64,3813.1,3812.4,2.62301]
[1733334809757,1.64,3813.1,3812.0,2.62323]
[1733334809956,1.64,3813.1,3812.1,0.02622888]
[1733334810170,1.64,3813.1,3813.0,2.6226]
[1733334810959,1.5394,3813.7,3813.6,2.62219]
[1733334812776,1.5394,3813.7,3813.0,2.6226]
[1733334813114,1.69334,3813.7,3811.9,2.62331]
[1733334813250,1.69334,3813.7,3812.7,2.6228]
[1733334813448,1.69334,3813.7,3812.4,2.62301]
[1733334813657,1.69334,3813.7,3812.9,2.62265]
[1733334814143,1.69334,3813.7,3813.0,2.62256]
[1733334814346,0.169334,3813.6,3812.7,2.62281]
[1733334814581,0.169334,3813.6,3812.6,0.0835348]
[1733334814748,1.5394,3813.7,3813.6,2.62219]
[1733334815691,1.5394,3813.7,3813.3,2.62235]
[1733334815692,1.5904,3814.2,3813.9,2.62193]
[1733334816253,1.5904,3814.2,3813.7,2.62211]
[1733334816446,1.5904,3814.2,3813.8,2.62203]
[1733334816797,1.80202713,3814.2,3813.8,2.62203]
[1733334817271,1.80202713,3814.2,3813.6,2.62218]
[1733334817639,1.80202713,3814.2,3813.7,2.62211]
[1733334818243,1.80202713,3814.2,3813.8,2.62199]
[1733334818750,1.80202713,3814.2,3813.9,2.62196]
[1733334818944,1.80202713,3814.2,3814.0,2.62188]
[1733334819246,1.629,3814.8,3813.3,3.0]
[1733334819446,1.629,3814.8,3814.6,2.6215]
[1733334819689,1.629,3814.8,3814.3,2.62164]
[1733334819858,1.629,3814.8,3814.5,2.62153]
[1733334820708,1.7919,3814.8,3813.7,3.0]
[1733334820916,1.7919,3814.8,3812.2,0.3]
[1733334820917,1.5668,3814.6,3813.4,2.62228]
[1733334821114,1.5668,3814.5,3813.1,5.62247]
[1733334821320,1.5668,3814.5,3813.5,2.62224]
[1733334821470,0.52538421,3815.1,3813.3,2.62238]
[1733334821471,1.5668,3814.4,3813.3,2.62238]
[1733334821667,1.5668,3814.8,3812.7,1.625]
[1733334821923,1.5668,3814.7,3813.8,2.62204]
[1733334822219,4.268926,3815.3,3813.8,2.62204]
[1733334822220,1.5668,3814.5,3813.8,2.62204]
[1733334822383,0.52816374,3814.4,3813.6,2.62218]
[1733334823672,0.52816374,3814.4,3813.1,2.62247]
[1733334824098,0.52816374,3814.4,3813.6,2.62218]
[1733334824312,0.52816374,3814.4,3813.6,2.62212]
[1733334824466,0.25137737,3814.3,3813.3,2.62236]
[1733334824670,1.5776,3814.0,3812.6,3.0835348]
[1733334824865,1.5776,3814.0,3812.6,0.0835348]
[1733334825066,1.5776,3814.0,3812.7,0.0262274]
[1733334825266,0.27394328,3815.5,3812.7,0.0262274]
[1733334825267,1.575,3815.2,3813.0,1.5734]
[1733334825521,1.575,3815.2,3813.3,3.0]
[1733334825522,0.1575,3815.1,3813.3,3.0]
[1733334825819,1.575,3815.2,3813.9,1.5734]
[1733334826019,1.575,3815.2,3815.1,2.62116]
[1733334826224,1.5762,3815.9,3815.1,2.62116]
[1733334826365,1.5762,3815.9,3815.6,2.62077]
[1733334826807,1.5762,3815.9,3814.8,2.89188568]
[1733334827015,1.5762,3815.9,3815.7,2.62074]
[1733334828203,1.5762,3815.9,3814.8,2.89188568]
[1733334828204,1.5762,3815.9,3815.8,2.62068]
[1733334828549,0.52656288,3816.7,3814.8,2.62132]
[1733334828846,1.6546,3817.2,3814.8,2.62132]
[1733334828847,1.6546,3817.2,3816.3,2.62033]
[1733334828994,1.6546,3817.2,3814.9,0.55]
[1733334828995,1.6546,3817.2,3816.4,2.62025]
[1733334829197,0.19284681,3817.1,3815.8,0.26880271]
[1733334829511,0.19284681,3817.1,3816.6,2.62012]
[1733334829706,0.19284681,3817.1,3816.2,2.62038]
[1733334830215,1.6546,3816.8,3814.9,4.1323]
[1733334830424,1.6546,3816.8,3815.5,2.62087]
[1733334830593,0.16546,3816.7,3814.9,1.511]
[1733334830799,0.16546,3816.7,3815.6,2.62075]
[1733334831027,0.16546,3816.7,3814.9,4.511]
[1733334831338,0.16546,3816.7,3815.1,3.0]
[1733334831539,0.16546,3816.7,3816.0,2.62054]
[1733334831726,0.2345836,3816.6,3816.0,2.62054]
[1733334832297,0.2345836,3816.6,3816.0,2.62053]
[1733334832844,0.2345836,3816.6,3815.9,2.6206]
[1733334833595,0.2345836,3816.6,3815.1,3.0]
[1733334833801,1.6066,3816.5,3815.7,2.62071]
[1733334834003,0.18411836,3816.4,3815.2,2.62104]
[1733334834227,0.18411836,3816.4,3815.7,2.62074]
[1733334834448,0.18411836,3816.4,3815.5,2.62088]
[1733334834606,0.18411836,3816.4,3815.7,2.62074]
[1733334834939,0.18411836,3816.4,3815.2,2.62108]
[1733334835233,0.17907184,3816.3,3815.2,2.62108]
[1733334835594,0.17907184,3816.3,3815.3,2.62098]
[1733334835796,0.17907184,3816.3,3815.0,3.0]
[1733334836039,0.17907184,3816.3,3815.6,2.62081]
[1733334836239,0.17907184,3816.3,3815.8,2.62067]
[1733334836533,1.5842,3816.2,3814.7,2.62143]
[1733334836705,0.43836418,3816.1,3815.2,2.62109]
[1733334836915,0.43836418,3816.1,3814.7,2.62143]
[1733334837130,0.43836418,3816.1,3814.9,2.62129]
[1733334837344,1.6451,3816.2,3814.9,2.62129]
[1733334837544,1.6451,3816.1,3814.7,2.62139]
[1733334837745,2.1719248,3816.1,3814.5,1.8630478]
[1733334837940,2.1719248,3816.1,3814.8,2.62136]
[1733334838148,1.6451,3817.3,3815.6,5.24162]
[1733334838353,0.69652442,3817.2,3816.8,2.61999]
[1733334838563,0.16451,3817.2,3816.6,2.62009]
[1733334838918,0.16451,3817.2,3816.3,5.62028]
[1733334839188,1.6451,3817.3,3816.6,2.62008]
[1733334839321,1.6451,3817.3,3816.9,2.61986]
[1733334839532,1.6451,3817.3,3816.6,2.62008]
[1733334839872,0.53161842,3817.9,3817.2,2.6197]
[1733334840069,1.518,3818.4,3816.7,2.62004]
[1733334840376,1.518,3818.4,3816.4,1.55729862]
[1733334840377,0.53345357,3818.2,3816.9,2.61992]
[1733334840672,0.53345357,3818.2,3816.8,0.262004]
[1733334840673,0.1518,3818.3,3816.8,0.262004]
[1733334840969,0.1518,3818.3,3817.3,2.61958]
[1733334841177,1.6157,3818.2,3816.5,2.62015]
[1733334841331,1.6157,3818.1,3816.6,0.02620041]
[1733334841527,1.6157,3818.1,3816.3,3.0]
[1733334841743,1.6157,3818.1,3817.5,2.61947]
[1733334842294,1.6157,3818.1,3817.0,4.20091]
[1733334842484,1.6157,3818.1,3817.1,3.0]
[1733334842780,1.6157,3818.1,3817.6,2.6194]
[1733334842944,1.6157,3818.1,3817.4,2.61956]
[1733334843298,1.6157,3818.1,3817.5,2.6195]
[1733334843479,1.77727,3818.1,3816.6,1.5709]
[1733334843969,1.77727,3818.1,3817.3,2.61964]
[1733334844157,1.6157,3818.1,3817.3,2.61964]
[1733334844542,1.6157,3818.1,3816.6,1.5709]
[1733334844746,2.61931,3817.8,3816.3,3.0]
[1733334844970,2.61931,3817.8,3816.2,4.19194]
[1733334844971,1.6532,3817.7,3816.6,2.62012]
[1733334845684,1.6532,3817.7,3816.7,2.62005]
[1733334845830,1.6532,3817.7,3817.1,2.61972]
[1733334846175,1.6532,3818.2,3816.9,3.0]
[1733334846384,1.6532,3818.2,3817.9,2.61923]
[1733334846666,1.6532,3818.2,3817.7,2.61937]
[1733334846829,1.6532,3818.2,3816.8,1.5716]
[1733334847073,1.81852,3818.2,3817.5,2.6195]
[1733334847491,1.81852,3818.2,3817.1,3.0]
[1733334847697,1.81852,3818.2,3817.4,2.61957]
[1733334848101,1.81852,3818.2,3816.9,5.8032405]
[1733334848302,1.81852,3818.2,3816.4,3.0]
[1733334848303,1.527,3818.0,3816.4,3.0]
[1733334848618,1.527,3818.0,3816.7,2.62006]
[1733334848822,1.527,3818.0,3816.6,5.62013]
[1733334848823,1.527,3818.0,3817.0,2.61983]
[1733334849133,0.23423574,3818.1,3816.6,5.62013]
[1733334849134,1.527,3817.8,3816.6,2.62011]
[1733334849275,1.527,3817.8,3816.4,3.0]
[1733334849479,1.527,3817.8,3817.0,2.61983]
[1733334849480,1.70312357,3817.8,3817.0,2.61983]
[1733334849708,1.70312357,3817.8,3816.5,0.32694096]
[1733334849919,1.527,3817.8,3816.7,1.5268]
[1733334850180,1.6198,3818.2,3816.7,1.5268]
[1733334850413,1.6198,3818.2,3817.0,2.61982]
[1733334850613,1.6198,3818.1,3817.0,2.61982]
[1733334850823,1.6198,3818.1,3816.8,3.0]
[1733334850977,0.21436373,3818.0,3816.5,3.58705806]
[1733334851423,0.21436373,3818.0,3817.1,2.61972]
[1733334851919,0.21436373,3818.0,3816.8,3.0]
[1733334852413,0.21436373,3818.0,3817.2,2.61971]
[1733334853617,1.6129,3817.9,3815.6,2.62076]
[1733334853820,1.6129,3817.6,3815.7,1.6508]
[1733334853979,1.6129,3817.6,3816.3,1.6508]
[1733334854175,1.6129,3817.6,3817.4,2.61955]
[1733334854379,1.6129,3817.6,3817.5,2.61951]
[1733334854632,1.6129,3818.8,3817.7,2.61937]
[1733334854828,1.6129,3818.6,3817.2,2.61967]
[1733334855127,0.51902796,3818.3,3817.3,2.61962]
[1733334855292,0.51902796,3818.3,3817.6,2.61943]
[1733334855493,1.6129,3818.2,3817.6,2.61943]
[1733334856331,1.6129,3818.2,3818.0,2.61916]
[1733334856938,1.6129,3818.2,3817.5,2.61951]
[1733334857093,1.6129,3818.2,3817.8,2.61926]
[1733334857836,1.6129,3818.2,3817.2,2.61968]
[1733334858043,1.8260928,3818.2,3817.5,2.61949]
[1733334858196,1.8260928,3818.2,3817.6,2.61944]
[1733334859198,1.8260928,3818.2,3817.5,2.61944]
[1733334859936,1.8260928,3818.2,3816.6,4.6645]
[1733334860147,0.23451208,3818.1,3817.5,2.61951]
[1733334860493,0.23451208,3818.1,3816.6,1.93350538]
[1733334860724,0.23451208,3818.1,3817.5,2.61948]
[1733334860933,1.5077,3818.0,3816.6,0.26900538]
[1733334861225,1.5077,3818.0,3817.0,2.61983]
[1733334861537,0.43613321,3817.9,3817.0,2.61983]
[1733334862034,0.43613321,3817.9,3816.3,3.52768919]
[1733334862035,0.43613321,3817.9,3816.6,2.62013]
[1733334862304,1.5077,3818.0,3817.2,2.61971]
[1733334862596,3.33,3817.9,3816.2,4.6404]
[1733334862903,3.33,3817.9,3817.1,2.61978]
[1733334863211,3.33,3817.9,3816.2,1.6404]
[1733334863212,3.33,3817.9,3816.5,2.6202]
[1733334863363,3.33,3817.9,3817.4,2.61957]
[1733334864000,3.33,3817.9,3816.9,2.61985]
[1733334864199,3.83722121,3817.9,3816.7,3.0]
[1733334865073,7.16722121,3817.9,3816.7,3.0]
[1733334865276,7.16722121,3817.9,3816.8,2.61999]
[1733334865477,7.16722121,3817.9,3817.3,2.61964]
[1733334865791,0.89094333,3817.8,3817.1,2.61977]
[1733334866300,1.5824,3817.7,3816.3,3.0]
[1733334866472,1.5824,3817.7,3816.4,2.62027]
[1733334866678,1.5824,3817.7,3816.3,0.25859568]
[1733334866992,1.5824,3817.7,3817.6,2.61944]
[1733334867501,1.5824,3817.7,3817.5,2.61949]
[1733334867704,1.5824,3817.7,3816.3,5.62028]
[1733334867705,1.5824,3817.7,3817.6,2.61944]
[1733334868505,1.5824,3817.7,3817.2,2.61967]
[1733334868717,1.5824,3817.7,3816.7,2.62006]
[1733334869006,1.5824,3817.7,3817.6,2.61944]
[1733334870479,1.5824,3817.7,3816.8,2.881996]
[1733334870480,1.5824,3817.7,3817.3,2.61964]
[1733334870978,1.5824,3817.7,3816.8,2.87867345]
[1733334871181,1.5824,3817.7,3817.1,2.61975]
[1733334871378,1.5824,3817.7,3816.2,4.6404]
[1733334871379,1.5824,3817.7,3816.5,2.62014]
[1733334871719,1.5888,3817.3,3815.8,1.7433348]
[1733334871914,1.5888,3817.3,3816.2,2.62038]
[1733334872207,1.5908,3817.0,3815.9,2.62054]
[1733334872513,1.5908,3817.0,3816.0,2.62053]
[1733334873408,1.5908,3817.0,3815.8,0.0835348]
[1733334873583,1.6011,3817.5,3816.9,2.61992]
[1733334873774,1.6011,3817.8,3816.9,0.34458693]
[1733334873969,16.65,3817.9,3817.8,2.6193]
[1733334875067,16.65,3817.9,3817.1,2.61978]
[1733334875268,16.65,3817.9,3817.2,2.61971]
[1733334875568,1.5342,3817.7,3816.8,2.61994]
[1733334875800,1.5221,3817.6,3816.5,2.62015]
[1733334876117,1.5221,3817.6,3816.7,2.62003]
[1733334876412,1.5221,3817.6,3816.8,2.61994]
[1733334876619,0.53104534,3817.3,3816.8,2.61994]
[1733334876906,0.73635987,3817.3,3816.8,2.61994]
[1733334877155,0.73635987,3817.3,3816.6,2.62006]
[1733334877267,0.73635987,3817.3,3816.8,2.61998]
[1733334877470,0.73635987,3817.3,3816.2,0.2640718]
[1733334877697,0.53104534,3817.3,3815.9,3.0]
[1733334877969,1.5731,3817.2,3816.4,2.62026]
[1733334878374,1.5731,3817.2,3815.9,3.0]
[1733334878567,1.5731,3817.2,3816.7,2.62003]
[1733334879085,1.5731,3817.2,3816.0,3.0]
[1733334879284,3.33,3817.7,3815.8,0.35311748]
[1733334879285,4.902,3817.7,3816.6,1.6623]
[1733334879602,4.902,3817.7,3817.6,2.61944]
[1733334879774,3.33,3817.7,3817.6,2.61944]
[1733334881713,6.66,3817.7,3817.6,2.61944]
[1733334882379,7.89839809,3817.9,3817.8,2.6193]
[1733334882580,5.27915809,3817.9,3817.8,2.6193]
[1733334882786,2.65991809,3817.9,3817.8,5.96388693]
[1733334883098,1.58169004,3819.7,3817.8,3.89458693]
[1733334883407,1.58169004,3819.7,3819.2,2.61834]
[1733334883569,2.1064645,3819.7,3819.2,2.61834]
[1733334883976,0.6061645,3819.7,3819.2,2.61834]
[1733334884201,0.08139004,3819.7,3819.2,2.61834]
[1733334886595,0.08139004,3819.7,3819.2,5.61834]
[1733334888300,1.12e-06,3819.3,3819.2,7.78394]
[1733334889336,1.12e-06,3819.3,3819.2,7.23394]
[1733334889942,1.12e-06,3819.3,3819.2,7.78394]
[1733334891916,1.12e-06,3819.3,3819.0,0.52734502]
[1733334892115,1.5396,3818.9,3816.9,2.61992]
[1733334892352,1.5396,3818.9,3816.8,1.6265]
[1733334892353,1.5396,3818.9,3817.4,2.61952]
[1733334892575,4.15817,3818.9,3817.1,2.61978]
[1733334892875,1.5029,3818.8,3817.1,2.61978]
[1733334893079,3.33,3817.7,3817.6,2.61944]
[1733334894055,4.9521,3817.7,3817.6,2.61944]
[1733334894237,4.9521,3817.7,3817.3,2.61958]
[1733334894442,4.9521,3817.7,3817.6,2.61944]
[1733334895445,8.2821,3817.7,3817.6,2.61944]
[1733334895696,8.2821,3817.7,3817.1,0.4515129]
[1733334895903,8.2821,3817.7,3817.4,2.61956]
[1733334897144,6.66,3817.7,3816.9,0.26892199]
[1733334897463,6.66,3817.7,3817.6,2.61944]
[1733334898692,9.99,3817.7,3817.6,2.61944]
[1733334901358,8.68031,3817.7,3817.6,7.16184]
[1733334901558,3.44155,3817.7,3817.6,7.16184]
[1733334901900,6.77155,3817.7,3817.6,7.16184]
[1733334902088,0.20816207,3817.7,3817.6,7.16184]
[1733334902392,2.07e-06,3817.7,3817.6,7.71184]
[1733334902704,1.12e-06,3819.3,3819.2,2.61834]
[1733334904419,1.12e-06,3819.3,3819.2,5.61834]
[1733334904577,1.12e-06,3819.3,3819.2,7.27204]
[1733334906131,1.12e-06,3819.3,3819.2,5.61834]
[1733334906517,1.16e-06,3819.7,3819.6,2.61807]
[1733334906723,1.5214,3820.7,3819.7,5.618]
[1733334906724,1.16e-06,3820.0,3819.7,5.618]
[1733334906904,1.16e-06,3820.0,3819.9,2.61786]
[1733334907283,1.16e-06,3820.0,3819.9,5.61786]
[1733334907592,1.5214,3821.6,3821.4,2.61683]
[1733334907787,1.5214,3821.6,3821.4,2.61679]
[1733334907987,1.5214,3821.6,3821.5,2.61677]
[1733334908535,1.5214,3821.6,3820.1,2.61773]
[1733334908536,1.5214,3821.6,3820.3,1.5749]
[1733334908693,0.15214,3821.5,3821.1,2.61698]
[1733334909119,0.15214,3821.5,3821.2,2.61697]
[1733334909401,0.1609075,3822.0,3820.5,0.55]
[1733334909606,0.1609075,3822.0,3821.5,2.61675]
[1733334910009,0.1609075,3822.0,3820.9,3.0]
[1733334910308,0.1609075,3822.0,3821.9,2.61649]
[1733334912194,0.1609075,3822.0,3821.3,0.26772693]
[1733334912420,0.1609075,3822.0,3821.6,2.61669]
[1733334912829,0.1609075,3822.0,3821.7,2.61663]
[1733334913035,1.5359,3821.9,3821.2,2.61696]
[1733334913250,0.16968075,3821.8,3821.1,2.61704]
[1733334913557,0.16968075,3821.8,3820.9,3.0]
[1733334913745,0.16968075,3821.8,3821.2,2.61694]
[1733334913932,0.16968075,3821.8,3821.7,2.61663]
[1733334914128,1.5359,3821.9,3821.7,2.61658]
[1733334914735,1.5359,3821.9,3821.8,2.61656]
[1733334915472,0.1609075,3822.0,3821.9,2.61649]
[1733334915847,0.1609075,3822.0,3820.8,3.0]
[1733334916075,0.1609075,3822.0,3821.9,2.61649]
[1733334917702,0.1609075,3822.0,3816.5,0.1]
[1733334917703,4.268926,3819.3,3816.5,0.1]
[1733334917992,0.2,3820.2,3816.5,0.1]
[1733334917993,1.4515,3819.2,3817.4,2.61958]
[1733334918190,1.4515,3819.2,3817.3,2.61963]
[1733334918191,1.4515,3819.2,3817.3,2.61965]
[1733334918495,1.4515,3819.2,3816.6,1.5862]
[1733334918689,1.4515,3818.8,3816.6,1.5862]
[1733334918860,0.407006,3818.7,3816.7,0.46305422]
[1733334919195,1.4515,3818.8,3816.8,0.02619449]
[1733334919493,1.4515,3818.8,3817.2,2.61972]
[1733334919650,1.4515,3818.8,3816.9,2.61992]
[1733334919850,1.4515,3818.8,3818.1,2.61905]
[1733334920281,1.4515,3818.8,3818.2,2.61902]
[1733334920589,2.61781,3820.0,3818.2,0.261902]
[1733334920888,1.6122,3820.6,3818.0,0.55]
[1733334921186,1.6122,3820.6,3819.6,2.61803]
[1733334921569,1.6122,3820.6,3819.5,2.6181]
[1733334921776,1.6122,3820.6,3819.4,0.55]
[1733334921958,1.6122,3820.6,3819.5,2.61811]
[1733334922160,1.6122,3820.6,3819.2,0.55]
[1733334922161,0.16122,3820.5,3819.7,2.61793]
[1733334922395,0.16122,3820.5,3819.5,0.55]
[1733334923022,0.16122,3820.5,3819.3,0.55]
[1733334923321,0.16122,3820.5,3819.5,2.61809]
[1733334923526,0.16122,3820.5,3819.2,0.55]
[1733334923823,0.16122,3820.5,3819.8,2.61793]
[1733334924120,1.6122,3820.6,3819.1,3.16841]
[1733334924419,1.6122,3820.6,3820.1,2.61768]
[1733334924984,1.6122,3820.6,3819.2,2.61834]
[1733334925223,1.626,3821.8,3819.6,0.55]
[1733334925390,0.17869075,3821.7,3821.0,2.6171]
[1733334925586,0.17869075,3821.7,3820.3,2.61752]
[1733334925926,0.17869075,3821.7,3820.9,0.55]
[1733334926405,0.17869075,3821.7,3821.1,2.61704]
[1733334926811,0.17869075,3821.7,3820.9,2.61716]
[1733334927104,0.17869075,3821.7,3820.6,0.55]
[1733334927105,0.18046907,3821.6,3820.6,0.55]
[1733334927543,0.18046907,3821.6,3821.0,2.61708]
[1733334927880,0.18046907,3821.6,3821.1,2.61703]
[1733334928121,0.18046907,3821.6,3820.8,2.61719]
[1733334928325,0.18046907,3821.6,3820.6,2.61736]
[1733334928496,0.17869075,3821.7,3820.3,0.26076986]
[1733334928497,0.19851598,3821.5,3820.3,0.26076986]
[1733334928695,0.19851598,3821.5,3820.4,2.6175]
[1733334928908,0.19851598,3821.5,3820.0,3.52853541]
[1733334929121,0.19851598,3821.5,3820.1,2.61773]
[1733334929333,0.19851598,3821.5,3820.5,2.61745]
[1733334929496,0.19851598,3821.5,3820.6,2.61737]
[1733334930455,0.19851598,3821.5,3820.7,2.61729]
[1733334931101,0.19851598,3821.5,3820.3,2.61759]
[1733334931306,0.19851598,3821.5,3820.6,2.61737]
[1733334931917,0.19851598,3821.5,3820.2,0.55]
[1733334932122,1.626,3821.8,3821.6,2.6167]
[1733334932442,1.626,3821.8,3821.4,2.61677]
[1733334932619,1.626,3821.8,3820.6,1.6626]
[1733334932620,1.626,3821.8,3820.7,0.55]